bitfinex/quotes_SOLUSD_20241223
["timestamp","ask_amount","ask_price","bid_price","bid_amount"]
[1734977550860,5.9741,185.84,185.74,14.25652554]
[1734977551190,0.12549,185.83,185.73,14.25652554]
[1734977551974,1.3664,185.84,185.76,14.25652554]
[1734977552170,8.04476742,185.87,185.78,14.25652554]
[1734977552366,4.6289,185.88,185.79,14.25652554]
[1734977552560,4.6289,185.88,185.8,14.25652554]
[1734977552561,1.3664,185.88,185.8,14.25652554]
[1734977552773,1.3447,185.91,185.81,14.25652554]
[1734977553586,4.6289,185.93,185.83,14.25652554]
[1734977554162,0.12549,185.92,185.83,14.25652554]
[1734977554378,0.12549,185.92,185.83,14.15652554]
[1734977554777,4.6289,185.93,185.82,14.25652554]
[1734977555473,0.12549,185.92,185.82,14.25652554]
[1734977555858,0.12549,185.92,185.8,14.25652554]
[1734977556064,23.902374,185.93,185.79,14.25652554]
[1734977556265,20.0,185.9,185.78,34.25652554]
[1734977556489,23.776884,185.89,185.78,20.0]
[1734977556670,23.776884,185.89,185.78,14.25652554]
[1734977556876,20.0,185.86,185.76,14.25652554]
[1734977557095,0.12549,185.85,185.75,14.25652554]
[1734977557299,23.902374,185.85,185.74,14.25652554]
[1734977557906,1.3664,185.87,185.76,14.25652554]
[1734977558204,0.12549,185.86,185.76,22.80358084]
[1734977559609,0.12549,185.86,185.77,22.80358084]
[1734977560321,1.3664,185.87,185.77,22.80358084]
[1734977561120,0.12549,185.84,185.75,22.80358084]
[1734977561319,0.12549,185.82,185.71,44.63427311]
[1734977561618,23.902374,185.82,185.71,44.63427311]
[1734977561802,23.902374,185.82,185.72,22.80358084]
[1734977562319,20.0,185.85,185.76,22.80358084]
[1734977562523,20.0,185.86,185.76,22.80358084]
[1734977562726,1.3664,185.87,185.76,22.80358084]
[1734977563024,1.3664,185.87,185.72,0.80742182]
[1734977563025,1.3664,185.87,185.77,22.80358084]
[1734977563401,1.3664,185.87,185.76,22.80358084]
[1734977564122,0.12549,185.86,185.76,22.80358084]
[1734977564335,0.12549,185.86,185.74,22.80358084]
[1734977564336,0.12549,185.84,185.74,22.80358084]
[1734977564533,0.12549,185.84,185.73,22.80358084]
[1734977564699,1.3664,185.87,185.75,22.80358084]
[1734977564904,1.3664,185.87,185.79,22.80358084]
[1734977565115,26.487884,185.92,185.81,22.80358084]
[1734977565629,1.3664,185.92,185.83,22.80358084]
[1734977565790,1.3664,185.92,185.82,22.80358084]
[1734977566122,0.12549,185.91,185.8,22.80358084]
[1734977566535,1.3664,185.92,185.79,6.3323]
[1734977566695,1.3664,185.92,185.85,22.80358084]
[1734977566889,1.3664,185.92,185.84,22.80358084]
[1734977568095,1.3443,185.97,185.85,22.80358084]
[1734977568096,1.3664,185.96,185.85,22.80358084]
[1734977569734,1.3664,185.96,185.84,22.80358084]
[1734977570100,1.3664,185.96,185.85,22.80358084]
[1734977571803,23.902374,185.93,185.85,22.80358084]
[1734977572003,23.902374,185.93,185.83,22.80358084]
[1734977572202,23.902374,185.93,185.82,42.80358084]
[1734977572509,23.902374,185.91,185.81,22.80358084]
[1734977572728,23.902374,185.91,185.8,22.80358084]
[1734977573526,1.3446,185.92,185.8,22.80358084]
[1734977573729,0.12549,185.9,185.79,21.81706893]
[1734977574036,23.902374,185.88,185.79,21.81706893]
[1734977574331,23.902374,185.88,185.79,44.62064977]
[1734977574721,20.0,185.93,185.83,22.80358084]
[1734977574905,21.3445,185.93,185.82,42.80358084]
[1734977575415,0.12549,185.92,185.82,42.80358084]
[1734977575936,0.12549,185.92,185.82,42.75508084]
[1734977576232,23.902374,185.92,185.82,42.75508084]
[1734977577721,23.902374,185.92,185.82,22.80358084]
[1734977580233,23.902374,185.92,185.81,14.24438645]
[1734977581020,23.902374,185.92,185.83,14.24438645]
[1734977581719,23.902374,185.92,185.81,14.24438645]
[1734977582345,23.902374,185.92,185.83,14.24438645]
[1734977586349,23.902374,185.92,185.81,14.24438645]
[1734977586644,20.0,185.89,185.79,35.2147921]
[1734977587021,23.902374,185.88,185.79,20.97040565]
[1734977587322,23.902374,185.86,185.79,20.97040565]
[1734977587515,23.902374,185.86,185.74,14.24438645]
[1734977587919,0.12549,185.86,185.74,14.24438645]
[1734977588311,20.0,185.85,185.74,14.24438645]
[1734977588513,20.0,185.85,185.75,14.24438645]
[1734977589035,1.3664,185.87,185.78,14.24438645]
[1734977589411,1.3664,185.87,185.76,14.24438645]
[1734977589730,1.3664,185.87,185.77,14.24438645]
[1734977589933,1.3664,185.87,185.8,14.24438645]
[1734977590450,1.3664,185.87,185.79,14.24438645]
[1734977592651,1.3664,185.87,185.8,14.24438645]
[1734977592829,1.3664,185.87,185.79,34.24438645]
[1734977593031,1.3664,185.87,185.79,14.24438645]
[1734977594248,1.3664,185.87,185.8,14.24438645]
[1734977595648,21.3664,185.91,185.81,14.24438645]
[1734977596272,21.3664,185.91,185.83,14.24438645]
[1734977596273,1.3664,185.91,185.83,14.24438645]
[1734977596927,1.3664,185.91,185.82,14.24438645]
[1734977597126,1.3664,185.91,185.83,14.24438645]
[1734977597341,1.3664,185.91,185.85,14.24438645]
[1734977597527,0.6834123,185.94,185.87,14.24438645]
[1734977598037,0.6834123,185.94,185.85,34.24438645]
[1734977598623,0.6834123,185.94,185.85,14.24438645]
[1734977598846,0.6834123,185.94,185.84,14.24438645]
[1734977599041,20.6834123,185.94,185.84,14.24438645]
[1734977599354,20.6834123,185.94,185.85,14.24438645]
[1734977599858,20.6834123,185.94,185.83,14.24438645]
[1734977600493,25.246974,185.93,185.82,14.24438645]
[1734977601655,25.246974,185.93,185.81,14.24438645]
[1734977602355,25.246974,185.93,185.79,14.24438645]
[1734977602536,20.0,185.9,185.79,14.24438645]
[1734977603024,20.0,185.9,185.81,14.24438645]
[1734977605931,25.246974,185.93,185.83,14.24438645]
[1734977606271,0.6834123,185.94,185.85,14.24438645]
[1734977606455,20.0,185.93,185.85,14.24438645]
[1734977607029,20.6834123,185.94,185.86,14.24438645]
[1734977607248,0.6834123,185.94,185.87,14.24438645]
[1734977608260,0.6834123,185.94,185.85,14.24438645]
[1734977608438,0.6834123,185.94,185.84,14.24438645]
[1734977608653,0.12549,185.93,185.83,14.24438645]
[1734977609447,1.46999,185.93,185.83,14.24438645]
[1734977609844,1.46999,185.93,185.82,14.24438645]
[1734977610246,1.46999,185.93,185.83,14.24438645]
[1734977610957,20.6834123,185.94,185.84,14.24438645]
[1734977611160,20.6834123,185.94,185.85,14.24438645]
[1734977611461,0.6834123,185.94,185.86,14.24438645]
[1734977615078,0.6834123,185.94,185.87,14.24438645]
[1734977615375,0.6834123,185.94,185.88,14.24438645]
[1734977615573,0.6834123,185.94,185.89,14.24438645]
[1734977615875,0.6834123,185.94,185.85,0.80676165]
[1734977615876,0.6834123,185.94,185.9,14.24438645]
[1734977616174,0.6834123,185.94,185.89,14.24438645]
[1734977616481,0.6834123,185.94,185.92,14.24438645]
[1734977617267,0.6834123,185.94,185.91,14.24438645]
[1734977617571,0.6834123,185.94,185.88,14.24438645]
[1734977617772,0.6834123,185.94,185.89,14.24438645]
[1734977617977,0.6834123,185.94,185.91,14.24438645]
[1734977618479,0.6834123,185.94,185.92,14.24438645]
[1734977618638,0.6834123,185.94,185.91,14.24438645]
[1734977619768,0.6834123,185.94,185.92,14.24438645]
[1734977620316,0.6834123,185.94,185.93,14.24438645]
[1734977621277,0.6834123,185.94,185.92,14.24438645]
[1734977621480,0.6834123,185.94,185.9,14.24438645]
[1734977621786,0.6834123,185.94,185.91,14.24438645]
[1734977623616,0.6834123,185.94,185.9,14.24438645]
[1734977624277,0.6834123,185.94,185.91,14.24438645]
[1734977625528,0.6834123,185.94,185.9,14.24438645]
[1734977627224,0.6834123,185.94,185.92,14.24438645]
[1734977628581,0.6834123,185.94,185.93,14.24438645]
[1734977629411,0.6834123,185.94,185.92,14.24438645]
[1734977630400,0.6834123,185.94,185.93,14.24438645]
[1734977631797,0.6834123,185.94,185.93,28.6223076]
[1734977632087,0.6834123,185.94,185.93,52.3991916]
[1734977634827,1.3664,186.08,185.97,0.12549]
[1734977635120,0.6834123,186.12,186.07,14.24438645]
[1734977635291,0.6834123,186.12,186.1,14.24438645]
[1734977635904,0.6834123,186.12,186.11,14.24438645]
[1734977637313,0.6834123,186.12,186.11,14.36987645]
[1734977637815,0.6834123,186.12,186.11,72.47595096]
[1734977638040,0.6834123,186.12,186.11,20.89629051]
[1734977638319,0.6834123,186.12,186.11,35.14067696]
[1734977639893,0.6834123,186.12,186.11,35.26616696]
[1734977640094,0.6834123,186.12,186.11,20.89629051]
[1734977642791,24.4602963,186.12,186.11,20.89629051]
[1734977643019,0.6834123,186.12,186.05,14.24438645]
[1734977644032,0.6834123,186.12,186.09,14.24438645]
[1734977644326,0.6834123,186.12,186.11,14.24438645]
[1734977645625,0.6834123,186.12,186.1,14.24438645]
[1734977648325,0.6834123,186.12,186.06,14.24438645]
[1734977648501,0.6834123,186.12,186.04,39.20360173]
[1734977648705,0.6834123,186.12,186.05,14.24438645]
[1734977649326,0.6834123,186.12,186.04,24.95921528]
[1734977649516,23.776884,186.11,186.04,39.20360173]
[1734977649838,0.6834123,186.12,186.04,24.95921528]
[1734977650210,0.6834123,186.12,186.05,14.24438645]
[1734977650921,0.6834123,186.12,186.07,14.24438645]
[1734977651220,0.6834123,186.12,186.09,14.24438645]
[1734977651536,0.6834123,186.12,186.03,23.902374]
[1734977651537,0.6834123,186.12,186.08,14.24438645]
[1734977652306,0.6834123,186.12,186.09,14.24438645]
[1734977652806,0.6834123,186.12,186.1,14.24438645]
[1734977653214,0.6834123,186.12,186.11,14.24438645]
[1734977653635,0.6834123,186.12,186.1,14.24438645]
[1734977653905,0.6834123,186.12,186.09,14.24438645]
[1734977654401,0.6834123,186.12,186.1,14.24438645]
[1734977654627,0.6834123,186.12,186.09,14.24438645]
[1734977655422,0.6834123,186.12,186.07,14.24438645]
[1734977656214,0.6834123,186.12,186.03,33.03793872]
[1734977656436,2.0498123,186.12,186.03,33.03793872]
[1734977657443,23.776884,186.11,186.03,33.03793872]
[1734977657733,23.776884,186.11,186.03,18.79355227]
[1734977660340,25.120184,186.11,186.03,18.79355227]
[1734977660533,0.12549,186.1,186.03,18.79355227]
[1734977660727,0.12549,186.1,185.98,14.24438645]
[1734977660929,0.12549,186.1,185.97,14.24438645]
[1734977661333,0.12549,186.1,185.98,14.24438645]
[1734977661712,0.12549,186.1,186.0,14.24438645]
[1734977661916,0.12549,186.1,185.99,14.24438645]
[1734977662145,23.776884,186.08,185.98,14.24438645]
[1734977662351,23.776884,186.08,185.97,14.24438645]
[1734977663050,1.3664,186.07,185.97,14.24438645]
[1734977663425,23.776884,186.06,185.96,14.24438645]
[1734977663631,23.776884,186.06,185.95,14.24438645]
[1734977664928,23.776884,186.04,185.93,14.24438645]
[1734977665256,20.0,186.04,185.96,14.24438645]
[1734977667166,4.6062,186.05,185.98,14.24438645]
[1734977667458,4.6062,186.05,185.97,14.24438645]
[1734977667663,1.3664,186.13,186.04,14.24438645]
[1734977667819,1.3664,186.13,186.06,14.24438645]
[1734977668327,1.3664,186.13,186.04,14.24438645]
[1734977668539,1.3664,186.13,186.02,14.24438645]
[1734977669047,23.776884,186.11,186.02,14.24438645]
[1734977672129,23.776884,186.11,186.0,14.24438645]
[1734977673148,0.12549,186.1,185.98,14.24438645]
[1734977673337,20.0,186.08,185.98,14.24438645]
[1734977674064,23.776884,186.07,185.98,14.24438645]
[1734977675062,21.3434,186.1,186.02,14.24438645]
[1734977675266,1.3434,186.1,186.01,14.24438645]
[1734977675434,1.3434,186.1,186.0,14.24438645]
[1734977678365,1.3434,186.1,186.02,14.24438645]
[1734977678536,0.6834123,186.12,186.02,14.24438645]
[1734977678738,0.6834123,186.12,186.04,14.24438645]
[1734977679875,20.6834123,186.12,186.04,14.24438645]
[1734977680040,0.6834123,186.12,186.04,14.24438645]
[1734977681539,0.6834123,186.12,186.06,14.24438645]
[1734977681967,0.6834123,186.12,186.05,14.24438645]
[1734977682860,0.6834123,186.12,186.03,14.24438645]
[1734977683090,23.776884,186.11,186.0,14.24438645]
[1734977683253,20.0,186.08,185.99,14.24438645]
[1734977683455,20.0,186.08,185.98,14.24438645]
[1734977683839,20.0,186.08,185.96,14.24438645]
[1734977684151,20.0,186.08,185.98,14.24438645]
[1734977684549,20.0,186.08,185.99,14.24438645]
[1734977684746,20.0,186.08,186.0,14.24438645]
[1734977685147,20.0,186.08,186.01,14.24438645]
[1734977685544,20.0,186.08,186.0,14.24438645]
[1734977686967,20.0,186.08,186.02,14.24438645]
[1734977687157,23.776884,186.11,186.02,14.24438645]
[1734977687879,2.0266123,186.12,186.03,14.24438645]
[1734977688546,20.6834123,186.12,186.04,14.24438645]
[1734977688743,0.6834123,186.12,186.05,14.24438645]
[1734977688981,0.6834123,186.12,186.06,14.24438645]
[1734977689247,0.6834123,186.12,186.07,14.24438645]
[1734977690600,0.6834123,186.12,186.06,14.24438645]
[1734977690871,0.6834123,186.12,186.07,14.24438645]
[1734977694374,0.6834123,186.12,186.06,14.24438645]
[1734977694572,0.6834123,186.12,186.07,14.24438645]
[1734977695165,0.6834123,186.12,186.05,14.24438645]
[1734977695479,0.6834123,186.12,186.03,0.80592956]
[1734977695480,0.6834123,186.12,186.03,14.24438645]
[1734977696482,0.6834123,186.12,186.04,14.24438645]
[1734977697355,0.6834123,186.12,186.05,14.24438645]
[1734977697771,0.6834123,186.12,186.06,14.24438645]
[1734977698884,0.6834123,186.12,186.08,14.24438645]
[1734977699089,0.6834123,186.12,186.11,14.24438645]
[1734977699752,1.23e-05,186.12,186.11,16.00087645]
[1734977699949,1.23e-05,186.12,186.11,16.8064078]
[1734977700149,1.23e-05,186.12,186.11,23.4445078]
[1734977700373,1.23e-05,186.12,186.11,9.07463135]
[1734977700595,1.23e-05,186.12,186.11,8.2691]
[1734977702663,1.23e-05,186.12,186.11,14.24438645]
[1734977704566,1.23e-05,186.12,186.11,38.14676045]
[1734977705085,1.23e-05,186.12,186.11,14.36987645]
[1734977705983,1.23e-05,186.12,186.1,15.0500661]
[1734977706486,1.23e-05,186.12,186.11,0.12549]
[1734977706695,1.23e-05,186.12,186.11,13.55839]
[1734977707662,1.23e-05,186.12,186.11,37.335274]
[1734977709087,1.23e-05,186.12,186.11,13.55839]
[1734977709786,1.23e-05,186.12,186.11,13.4329]
[1734977709989,1.23e-05,186.12,186.08,14.24438645]
[1734977710196,1.23e-05,186.12,186.07,14.24438645]
[1734977710407,1.23e-05,186.12,186.09,14.24438645]
[1734977710688,1.23e-05,186.12,186.11,14.24438645]
[1734977713377,1.23e-05,186.12,186.1,14.24438645]
[1734977713574,1.23e-05,186.12,186.08,14.24438645]
[1734977716393,1.23e-05,186.12,186.09,14.24438645]
[1734977718069,1.23e-05,186.12,186.1,14.24438645]
[1734977718269,1.23e-05,186.12,186.11,14.24438645]
[1734977718476,1.23e-05,186.12,186.1,14.24438645]
[1734977718971,1.23e-05,186.12,186.09,14.24438645]
[1734977720303,1.23e-05,186.12,186.08,14.24438645]
[1734977720471,1.23e-05,186.12,186.02,19.9365]
[1734977720671,1.23e-05,186.12,186.05,14.24438645]
[1734977720899,23.7768963,186.12,186.04,14.24438645]
[1734977721084,23.7768963,186.12,186.03,14.24438645]
[1734977721897,23.7768963,186.12,186.01,14.24438645]
[1734977722090,20.0,186.09,186.0,14.24438645]
[1734977723296,20.0,186.09,185.96,1.6499]
[1734977723297,25.120384,186.08,185.98,14.24438645]
[1734977723479,23.776884,186.06,185.95,14.24438645]
[1734977724407,0.12549,186.05,185.94,14.24438645]
[1734977724603,23.776884,186.02,185.92,14.24438645]
[1734977724980,23.776884,186.02,185.93,14.24438645]
[1734977725179,20.0,186.03,185.95,14.24438645]
[1734977725379,6.7474421,186.05,185.97,14.24438645]
[1734977725687,23.776884,186.06,185.97,14.24438645]
[1734977725890,23.776884,186.06,185.98,14.24438645]
[1734977726289,4.6289,186.07,185.98,14.24438645]
[1734977726497,24.6289,186.07,186.0,14.24438645]
[1734977726882,24.6289,186.07,185.99,14.24438645]
[1734977727898,24.6289,186.07,185.98,14.24438645]
[1734977728084,20.0,186.06,185.98,14.24438645]
[1734977728292,20.0,186.06,185.99,14.24438645]
[1734977729692,4.6289,186.07,185.99,14.24438645]
[1734977729893,4.6289,186.07,185.98,14.24438645]
[1734977730315,20.0,186.06,185.98,14.24438645]
[1734977733790,23.776884,186.05,185.98,14.24438645]
[1734977733992,20.0,186.02,185.93,14.24438645]
[1734977734208,1.3664,186.0,185.9,15.17791382]
[1734977734412,23.776884,185.99,185.9,15.17791382]
[1734977734591,23.776884,185.97,185.9,15.17791382]
[1734977734788,23.776884,185.97,185.87,14.24438645]
[1734977735000,23.776884,185.97,185.88,14.24438645]
[1734977735218,23.776884,185.97,185.9,14.24438645]
[1734977735509,1.3664,186.0,185.93,14.24438645]
[1734977735716,23.776884,185.99,185.92,14.24438645]
[1734977736013,23.776884,185.99,185.91,14.24438645]
[1734977737901,1.3664,186.0,185.93,14.24438645]
[1734977738103,1.3664,186.0,185.94,14.24438645]
[1734977738299,1.3664,186.0,185.93,14.24438645]
[1734977739016,1.3664,186.06,185.96,14.24438645]
[1734977739196,1.3664,186.06,185.97,14.24438645]
[1734977739398,2.7101,186.06,185.94,15.05086654]
[1734977739600,0.12549,186.05,185.92,14.24438645]
[1734977739817,0.12549,186.05,185.91,15.75408645]
[1734977740012,1.3437,186.04,185.91,15.75408645]
[1734977740222,20.0,186.03,185.91,15.75408645]
[1734977740720,23.776884,186.02,185.91,15.75408645]
[1734977740927,23.776884,185.98,185.89,14.24438645]
[1734977741223,23.776884,185.94,185.84,14.24438645]
[1734977741420,23.776884,185.94,185.82,1.6224]
[1734977741421,23.776884,185.94,185.83,14.24438645]
[1734977741904,23.776884,185.9,185.8,20.55398645]
[1734977742299,23.776884,185.9,185.8,6.3096]
[1734977742609,23.776884,185.9,185.8,20.55398645]
[1734977743157,23.776884,185.9,185.79,15.05143928]
[1734977743436,23.776884,185.88,185.78,14.24438645]
[1734977743616,20.0,185.85,185.75,15.99720449]
[1734977743814,23.776884,185.84,185.75,15.19017055]
[1734977744499,23.776884,185.84,185.73,14.24438645]
[1734977744701,20.0,185.81,185.72,14.24438645]
[1734977744925,23.776884,185.8,185.69,14.24438645]
[1734977745218,23.776884,185.8,185.67,14.24438645]
[1734977745219,20.0,185.77,185.67,14.24438645]
[1734977745519,23.776884,185.8,185.71,14.24438645]
[1734977746113,23.776884,185.8,185.7,14.24438645]
[1734977746429,3.2625,185.94,185.79,14.24438645]
[1734977746615,3.2625,185.94,185.82,14.24438645]
[1734977746819,3.2625,185.94,185.79,14.24438645]
[1734977747021,0.12549,185.93,185.79,14.24438645]
[1734977747218,3.2625,185.94,185.79,14.24438645]
[1734977747427,3.2625,185.94,185.75,20.0]
[1734977747428,3.2625,185.94,185.78,14.24438645]
[1734977747624,1.46999,185.93,185.78,14.24438645]
[1734977747840,0.12549,185.91,185.77,14.24438645]
[1734977748149,0.12549,185.89,185.77,14.24438645]
[1734977748517,1.3448,185.9,185.79,14.24438645]
[1734977748732,1.3448,185.9,185.81,14.24438645]
[1734977749337,3.2625,185.94,185.82,14.24438645]
[1734977749634,4.607,185.94,185.82,14.24438645]
[1734977749842,0.12549,185.93,185.81,14.24438645]
[1734977750036,0.12549,185.93,185.79,14.24438645]
[1734977750243,1.3446,185.92,185.81,14.24438645]
[1734977750844,23.902374,185.91,185.81,14.24438645]
[1734977751221,20.0,185.88,185.81,14.24438645]
[1734977754259,23.902374,185.91,185.81,14.24438645]
[1734977755374,3.2625,185.94,185.81,14.24438645]
[1734977756531,20.0,185.9,185.81,14.24438645]
[1734977759964,20.0,185.9,185.83,14.24438645]
[1734977760135,20.0,185.9,185.85,14.24438645]
[1734977760336,3.2625,185.94,185.87,14.24438645]
[1734977760557,1.3664,185.95,185.87,14.24438645]
[1734977760942,3.2625,185.98,185.91,14.24438645]
[1734977761440,3.2625,185.98,185.88,14.24438645]
[1734977761766,3.2625,185.98,185.86,14.24438645]
[1734977761965,3.2625,185.98,185.88,14.24438645]
[1734977762166,1.3664,186.0,185.92,14.24438645]
[1734977762467,1.3664,186.05,185.97,14.24438645]
[1734977762642,7.30558044,186.08,185.99,14.24438645]
[1734977762851,1.3435,186.07,185.95,14.24438645]
[1734977763051,1.3435,186.07,185.86,6.84928849]
[1734977763263,1.3664,186.06,185.88,14.24438645]
[1734977763548,1.3664,186.06,185.9,14.24438645]
[1734977763753,20.12549,186.05,185.91,14.24438645]
[1734977764160,23.776884,186.0,185.91,14.24438645]
[1734977764366,28.405784,185.96,185.83,1.5672]
[1734977764543,28.405784,185.96,185.85,14.24438645]
[1734977764963,28.405784,185.96,185.86,14.24438645]
[1734977765548,28.405784,185.96,185.87,14.24438645]
[1734977766868,28.405784,185.96,185.86,14.24438645]
[1734977767050,23.776884,185.92,185.84,14.24438645]
[1734977767248,23.776884,185.92,185.83,14.24438645]
[1734977767845,23.776884,185.92,185.84,14.24438645]
[1734977768050,23.776884,185.92,185.83,14.24438645]
[1734977768262,23.776884,185.92,185.82,14.24438645]
[1734977768469,23.776884,185.92,185.83,14.24438645]
[1734977769008,23.776884,185.88,185.8,14.24438645]
[1734977769285,20.0,185.85,185.77,14.24438645]
[1734977769513,23.776884,185.84,185.74,14.24438645]
[1734977770082,23.776884,185.84,185.75,14.24438645]
[1734977770993,23.776884,185.84,185.76,14.24438645]
[1734977772592,20.0,185.84,185.79,14.24438645]
[1734977772771,20.0,185.88,185.81,14.24438645]
[1734977772970,5.9737,185.91,185.81,14.24438645]
[1734977773209,0.12549,185.9,185.81,14.24438645]
[1734977773499,0.12549,185.9,185.8,14.24438645]
[1734977774106,23.902374,185.9,185.8,14.24438645]
[1734977774591,23.776884,185.9,185.81,14.24438645]
[1734977774789,23.776884,185.9,185.82,14.24438645]
[1734977775863,20.0,185.87,185.8,14.24438645]
[1734977776482,20.0,185.87,185.79,14.24438645]
[1734977776686,23.776884,185.9,185.8,14.24438645]
[1734977777195,20.0,185.87,185.8,14.24438645]
[1734977777363,20.0,185.87,185.81,14.24438645]
[1734977777565,23.776884,185.9,185.83,14.24438645]
[1734977778795,23.776884,185.9,185.81,14.24438645]
[1734977779694,23.776884,185.86,185.77,14.24438645]
[1734977779918,0.12549,185.89,185.75,14.24438645]
[1734977779919,23.776884,185.82,185.75,14.24438645]
[1734977780195,23.776884,185.82,185.7,6.4405]
[1734977780196,23.776884,185.82,185.73,14.24438645]
[1734977780784,23.776884,185.82,185.72,14.24438645]
[1734977780785,0.12549,185.81,185.72,14.24438645]
[1734977781504,23.776884,185.78,185.68,14.24438645]
[1734977782003,23.776884,185.78,185.7,14.24438645]
[1734977782184,23.776884,185.78,185.7,22.81838013]
[1734977782695,23.776884,185.78,185.69,22.81838013]
[1734977782696,0.12549,185.77,185.69,22.81838013]
[1734977783083,23.776884,185.78,185.71,22.81838013]
[1734977785589,21.3664,185.81,185.71,22.81838013]
[1734977786116,23.776884,185.8,185.71,22.81838013]
[1734977786426,0.12549,185.79,185.71,22.81838013]
[1734977786715,23.776884,185.76,185.69,22.81838013]
[1734977786998,20.0,185.73,185.66,0.6834]
[1734977787175,20.0,185.69,185.66,0.6834]
[1734977787380,23.776884,185.68,185.66,0.6834]
[1734977788179,20.0,185.7,185.66,0.6834]
[1734977788486,23.776884,185.69,185.66,0.6834]
[1734977789223,1.3664,185.72,185.66,0.6834]
[1734977789386,20.0,185.73,185.66,23.50178013]
[1734977789784,20.12549,185.75,185.66,0.6834]
[1734977790724,23.776884,185.74,185.66,0.6834]
[1734977790882,0.12549,185.73,185.66,0.6834]
[1734977791810,23.776884,185.74,185.67,22.81838013]
[1734977792015,20.0,185.76,185.68,22.81838013]
[1734977792211,20.0,185.76,185.69,22.81838013]
[1734977792408,1.3664,185.77,185.7,22.81838013]
[1734977792609,1.3664,185.77,185.69,22.81838013]
[1734977792911,4.6289,185.82,185.73,22.81838013]
[1734977793130,4.6289,185.82,185.68,2.42106115]
[1734977793331,1.3454,185.81,185.67,22.81838013]
[1734977793632,3.38799,185.8,185.66,0.6834]
[1734977793834,0.12549,185.78,185.66,0.6834]
[1734977794196,0.12549,185.76,185.66,0.6834]
[1734977794436,0.12549,185.7,185.66,0.6834]
[1734977794598,23.902374,185.7,185.66,0.6834]
[1734977794798,20.0,185.71,185.66,0.6834]
[1734977795208,43.902374,185.74,185.66,0.6834]
[1734977795755,45.248274,185.74,185.66,0.6834]
[1734977797611,45.122784,185.74,185.66,23.50178013]
[1734977797799,23.776884,185.74,185.67,22.81838013]
[1734977798309,23.776884,185.74,185.66,0.6834]
[1734977798310,0.12549,185.73,185.66,0.6834]
[1734977799037,0.12549,185.7,185.66,0.6834]
[1734977799206,25.122784,185.74,185.66,0.6834]
[1734977799811,23.776884,185.7,185.66,0.6834]
[1734977800649,21.3459,185.74,185.66,0.6834]
[1734977800851,2.7121,185.77,185.66,23.50178013]
[1734977801725,0.12549,185.76,185.66,0.6834]
[1734977802245,23.902374,185.76,185.66,23.50178013]
[1734977802449,0.12549,185.74,185.66,23.50178013]
[1734977802739,23.902374,185.74,185.66,0.6834]
[1734977805844,23.776884,185.74,185.66,23.50178013]
[1734977806247,23.776884,185.74,185.66,14.9508638]
[1734977808273,3.2625,185.8,185.68,14.2674638]
[1734977808433,3.2625,185.8,185.7,14.2674638]
[1734977808626,3.2625,185.8,185.72,14.2674638]
[1734977808854,1.3454,185.82,185.72,14.2674638]
[1734977809249,1.3454,185.82,185.7,14.2674638]
[1734977809453,20.0,185.81,185.68,14.2674638]
[1734977809737,0.12549,185.8,185.67,7.6683]
[1734977810330,20.0,185.75,185.67,7.6683]
[1734977810548,23.776884,185.74,185.67,7.6683]
[1734977811169,20.0,185.75,185.68,14.2674638]
[1734977811472,23.776884,185.78,185.68,14.2674638]
[1734977811769,20.0,185.75,185.68,14.2674638]
[1734977811970,23.776884,185.78,185.68,14.2674638]
[1734977812271,23.776884,185.78,185.7,14.2674638]
[1734977812434,1.3454,185.82,185.73,14.2674638]
[1734977812856,0.12549,185.81,185.73,14.2674638]
[1734977813052,1.3454,185.82,185.73,14.2674638]
[1734977813261,1.3454,185.82,185.71,14.2674638]
[1734977813447,1.3454,185.82,185.72,14.2674638]
[1734977813656,0.12549,185.81,185.72,14.2674638]
[1734977814364,23.776884,185.81,185.72,14.2674638]
[1734977814588,21.3454,185.82,185.72,14.2674638]
[1734977816083,1.3452,185.85,185.74,14.2674638]
[1734977816258,0.12549,185.84,185.74,20.6384638]
[1734977816465,0.12549,185.84,185.74,6.371]
[1734977817271,23.902374,185.84,185.74,6.371]
[1734977817474,20.0,185.81,185.74,6.371]
[1734977817803,23.776884,185.8,185.74,6.371]
[1734977818095,23.902374,185.81,185.74,6.371]
[1734977818392,24.6076,185.85,185.74,20.6384638]
[1734977818558,1.3664,185.88,185.76,14.2674638]
[1734977818761,14.267463,185.9,185.78,14.2674638]